Cogmind - Beta 11 X7 @@@ ROGUE MODE // 2021.09.24 @ 00:23:56 Player: Runia Result: Self-destructed Performance ------------- Evolutions (5) 2500 Regions Visited (12) 2400 Robots Destroyed (100) 500 Value Destroyed (3360) 3360 Prototype IDs (29) 580 Alien Tech Used (0) 0 Bonus (238) 238 TOTAL SCORE: 9578 Bonus ------- High Alert Combat Kills 81 Follower Combat Kills 65 Aligned with FarCom 300 Friendly Fire -208 Cogmind --------- Core Integrity 969/1000 Matter 249/300 Energy 99/100 System Corruption 0% Temperature Cool (0) Movement Core (50) Location -5/Factory Parts ------- > --- POWER (1) -------- (None) > --- PROPULSION (6) --- (None) > --- UTILITY (7) ------ (None) > --- WEAPON (3) ------- (None) > --- INVENTORY (5) ---- Hardened Heavy Armor Plating Peak State ------------ > --- POWER ------------ Antimatter Reactor > --- PROPULSION ------- Heavy Treads Heavy Treads Improved Titanium Leg Improved Titanium Leg > --- UTILITY ---------- Cooling System High-capacity Storage Unit Advanced Targeting Computer Improved Light Armor Plating > --- WEAPON ----------- YOLO Cannon > --- INVENTORY -------- Improved Deuterium Engine Armored Treads Cooling System Cooling System High-capacity Battery Improved Signal Interpreter Improved Terrain Scan Processor Energy Filter Transmission Jammer Hardened Heavy Armor Plating Hacking Suite Hacking Suite Autogun XL Autogun Array Grenade Launcher Improved Grenade Launcher [Rating: 76] Favorites ----------- Power Light Nuclear Core Engine Light Ion Engine Power Core Light Nuclear Core Reactor Antimatter Reactor Propulsion Aluminum Leg Treads Heavy Treads Leg Aluminum Leg Wheel Compact Wheel Utility High-capacity Storage Unit Device Cooling System Storage High-capacity Storage Unit Processor Improved Targeting Computer Protection Light Armor Plating Weapon Light Cannon Energy Cannon Guided Plasma Cannon Ballistic Gun Assault Rifle Ballistic Cannon Light Cannon Launcher Grenade Launcher Slashing Weapon Greatsword Build | -11 -10 -9 -9 -9 -8 -8 -7 -7 -7 -7 -7 -5 ------- Run | Scr Mat Mat Min Exi Min Mat Fac Was Fac Sto Rec Fac Slots Evolved 10 | . . 2 . . . 2 2 . . . . 4 Power . | . . . . . . . . . . . . . Propulsion 4 | . . . . . . 2 2 . . . . . Utility 5 | . . 2 . . . . . . . . . 3 Weapon 1 | . . . . . . . . . . . . 1 Parts Attached 77 | . 22 7 . 5 2 12 18 4 . 2 5 . Power 7 | . 3 . . . . 1 1 1 . 1 . . Engine 2 | . 2 . . . . . . . . . . . Core 3 | . 1 . . . . 1 1 . . . . . Reactor 2 | . . . . . . . . 1 . 1 . . Propulsion 27 | . 4 1 . . 1 7 10 2 . 1 1 . Treads 9 | . . 1 . . 1 5 . 2 . . . . Leg 15 | . 3 . . . . . 10 . . 1 1 . Wheel 3 | . 1 . . . . 2 . . . . . . Hover . | . . . . . . . . . . . . . Flight . | . . . . . . . . . . . . . Utility 16 | . 5 3 . 4 . 1 1 1 . . 1 . Device 2 | . . . . 2 . . . . . . . . Storage 4 | . 2 1 . 1 . . . . . . . . Processor 5 | . 1 2 . . . . . 1 . . 1 . Hackware . | . . . . . . . . . . . . . Protection 5 | . 2 . . 1 . 1 1 . . . . . Artifact . | . . . . . . . . . . . . . Weapon 27 | . 10 3 . 1 1 3 6 . . . 3 . Energy Gun . | . . . . . . . . . . . . . Energy Cannon 6 | . . . . 1 . 2 3 . . . . . Ballistic Gun 10 | . 5 1 . . 1 . 1 . . . 2 . Ballistic Cannon 2 | . 1 1 . . . . . . . . . . Launcher 8 | . 4 1 . . . 1 2 . . . . . Special Weapon . | . . . . . . . . . . . . . Impact Weapon . | . . . . . . . . . . . . . Slashing Weapon 1 | . . . . . . . . . . . 1 . Piercing Weapon . | . . . . . . . . . . . . . Special Melee Weapon . | . . . . . . . . . . . . . Unidentified Prototypes 1 | . . . . . . . 1 . . . . . Parts Lost 7 | . 1 . . . . . . . . 4 . 2 Power 1 | . . . . . . . . . . . . 1 Propulsion 2 | . . . . . . . . . . 2 . . Utility 2 | . . . . . . . . . . 1 . 1 Weapon 2 | . 1 . . . . . . . . 1 . . Highest Loss Streak 4 | . 1 . . . . . . . . 4 . 2 Average Slot Usage (%) 88 | . 96 100 100 100 100 100 93 81 76 72 58 48 Engine 2 | . 10 . . . . . . . . . . . Core 5 | . 3 11 11 11 11 9 7 1 . . . . Reactor 2 | . . . . . . . . 5 7 7 7 4 Treads 8 | . . 10 11 11 11 18 8 7 15 13 7 4 Leg 13 | . 26 . . . . . 27 27 15 13 13 10 Wheel 6 | . 1 11 11 11 11 18 7 . . . . . Device 5 | . . . . 6 11 9 7 7 7 7 7 4 Storage 12 | . 14 11 11 12 22 18 15 11 7 7 7 4 Processor 5 | . 2 33 33 18 . . . 3 7 6 3 4 Protection 7 | . 8 . . 6 11 9 7 7 7 7 7 3 Energy Cannon 4 | . . . . 6 10 8 6 7 7 6 . . Ballistic Gun 7 | . 27 11 11 4 . . . . . . 3 4 Ballistic Cannon 4 | . . 11 11 11 11 9 3 . . . . . Naked Turns 16 | . . . . . . . . . . . . 16 Heaviest Build 90 | 12 90 90 49 67 67 69 75 83 79 79 64 64 Greatest Support 140 | 20 20 10 10 10 10 32 87 140 140 140 70 70 Greatest Overweight (x) 8 | . 8 8 4 6 6 2 2 1 . . . . Average Overweight (x) 1 | . 1 5 4 5 5 1 . . . . . . Largest Inventory Capacity 25 | . 25 25 20 20 20 20 20 20 20 20 20 20 Average Capacity 18 | . 14 22 20 20 20 20 20 20 20 20 20 18 Most Carried 20 | . 20 19 15 20 20 20 20 20 20 20 20 20 Average Carried 17 | . 9 15 15 17 19 19 19 19 19 20 19 18 Final Capacity 25 | 8 25 20 20 20 20 20 20 20 20 20 20 5 Final Carried 20 | 6 20 15 15 19 20 20 20 19 20 20 20 2 Class Distribution -------------------- 54% | Mutant 31% | Scavenger-Mutant 14% | Commander-Mutant Dominant Class ---------------- Mutant | -10/Materials Mutant | -9/Materials Mutant | -9/Mines Mutant | -9/Exiles Mutant | -8/Mines Mutant | -8/Materials Scavenger-Mutant | -7/Factory Scavenger-Mutant | -7/Waste Scavenger-Mutant | -7/Factory Scavenger-Mutant | -7/Storage Commander-Mutant | -7/Recycling Commander-Mutant | -5/Factory Resources | -11 -10 -9 -9 -9 -8 -8 -7 -7 -7 -7 -7 -5 ----------- Run | Scr Mat Mat Min Exi Min Mat Fac Was Fac Sto Rec Fac Matter Collected 1836 | 200 548 135 131 . 95 150 211 58 38 30 240 . Remotely . | . . . . . . . . . . . . . Salvage Created 4681 | . 808 51 33 . 198 949 699 1259 62 500 122 . Parts 186 | . 57 8 5 . 10 44 27 9 4 17 5 . Haulers Intercepted 6 | . 2 . . . . 2 1 . . 1 . . Recyclers Shooed 5 | . 2 . 1 . . . . . . . 2 . Parts Field Recycled . | . . . . . . . . . . . . . Retrieved Matter . | . . . . . . . . . . . . . Parts Self-Destructed . | . . . . . . . . . . . . . Prevented . | . . . . . . . . . . . . . Kills | -11 -10 -9 -9 -9 -8 -8 -7 -7 -7 -7 -7 -5 ------- Run | Scr Mat Mat Min Exi Min Mat Fac Was Fac Sto Rec Fac Combat Hostiles Destroyed 68 | . 16 5 . . 6 15 11 5 1 9 . . Guns 11 | . 10 1 . . . . . . . . . . Cannons 30 | . . . . . 6 11 10 2 . 1 . . AOE 17 | . 6 4 . . . 2 . . . 5 . . Classes Destroyed 16 | . 7 1 . . 1 4 . 1 . 2 . . Worker 7 | . 3 1 2 . . . 1 . . . . . Builder 2 | . 1 . . . . . 1 . . . . . Hauler 6 | . 2 . . . . 2 1 . . 1 . . Recycler 3 | . 1 . . . . . . . 1 . 1 . Carrier 1 | . . . . . . . . . . 1 . . Operator 7 | . 2 1 . . . 2 1 . . 1 . . Watcher 5 | . 1 . . . . 3 . . . 1 . . Swarmer 7 | . . 4 . . 3 . . . . . . . Grunt 36 | . 16 1 . . 2 8 7 . . 2 . . Brawler 4 | . . . . . 1 . 1 . . 2 . . Protector 1 | . . . . . . . . . . 1 . . Sentry 9 | . . . . . . 3 3 . . 2 1 . Specialist 2 | . . . . . . 2 . . . . . . Hunter 4 | . . . . . . 1 . . 1 2 . . Heavy 1 | . . . . . . 1 . . . . . . Compactor 5 | . . . . . . . . 5 . . . . Best Kill Streak 7 | . 4 5 2 . 3 4 2 5 1 7 1 . Combat Bots Only 5 | . 3 5 . . 3 3 2 5 1 4 . . Max Kills in Single Turn 3 | . 2 3 2 . 1 3 1 1 1 2 1 . Gunslinging . | . . . . . . . . . . . . . Exploded 3 | . 2 3 . . . 2 . . . 1 . . Melee . | . . . . . . . . . . . . . Uniques/NPCs Destroyed . | . . . . . . . . . . . . . Combat | -11 -10 -9 -9 -9 -8 -8 -7 -7 -7 -7 -7 -5 -------- Run | Scr Mat Mat Min Exi Min Mat Fac Was Fac Sto Rec Fac Damage Taken 3214 | . 656 45 . . 90 351 566 126 298 846 71 165 Core 420 | . 199 . . . 14 46 20 . . 107 3 31 Absorbed by Shields 223 | . . . . . . . . . . . 62 161 Reduced by Siege Mode 58 | . . . . . . . . . . 58 . . Core Remaining (%) 68 | 100 20 . . . 96 91 . . . . 35 . Volleys Fired 256 | . 72 6 5 . 15 61 49 9 3 16 19 1 Largest 2 | . 2 2 2 . 2 1 1 1 1 1 1 1 Hottest 120 | . 40 55 55 . 120 120 120 100 100 100 23 23 Shots Fired 328 | . 133 8 10 . 19 61 48 10 5 13 20 1 Gun 155 | . 123 2 5 . 4 . . . . . 20 1 Cannon 154 | . . 4 5 . 15 58 44 10 5 13 . . Launcher 19 | . 10 2 . . . 3 4 . . . . . Special . | . . . . . . . . . . . . . Kinetic 168 | . 123 6 10 . 8 . . . . . 20 1 Thermal 141 | . . . . . 11 58 44 10 5 13 . . Explosive 19 | . 10 2 . . . 3 4 . . . . . Electromagnetic . | . . . . . . . . . . . . . Robot Hit Streak 64 | . 9 4 9 . 9 30 64 5 2 6 8 . Robot Miss Streak 4 | . 4 1 1 . 1 . 1 2 1 1 3 . Penetration Max . | . . . . . . . . . . . . . Secondary Targets 2 | . 2 . . . . . . . . . . . Max Gunslinging Chain 1 | . 1 . . . . . . . . . . . Shots Hit Robots 200 | . 85 5 6 . 9 29 35 7 2 11 11 . Core Hits 142 | . 47 8 3 . 9 29 22 6 1 14 3 . Critical Kills 6 | . . . . . . . . 3 . 3 . . Critical Parts Destroyed . | . . . . . . . . . . . . . Critical Strikes 7 | . . . . . 1 . . 3 . 3 . . Meltdown 6 | . . . . . . . . 3 . 3 . . Blast 1 | . . . . . 1 . . . . . . . Melee Attacks . | . . . . . . . . . . . . . Impact . | . . . . . . . . . . . . . Slashing . | . . . . . . . . . . . . . Piercing . | . . . . . . . . . . . . . Sneak Attacks . | . . . . . . . . . . . . . Combat Hostiles . | . . . . . . . . . . . . . Follow-up Attacks . | . . . . . . . . . . . . . Damage Inflicted 10276 | . 1601 398 80 . 422 2081 1708 1274 425 2107 180 . Guns 1229 | . 997 15 31 . 6 . . . . . 180 . Cannons 6015 | . . 56 49 . 416 1724 1532 773 232 1233 . . Explosions 3032 | . 604 327 . . . 357 176 501 193 874 . . Melee . | . . . . . . . . . . . . . Ramming . | . . . . . . . . . . . . . Kinetic 1399 | . 997 71 80 . 71 . . . . . 180 . Thermal 7505 | . . . . . 351 1724 1624 1274 425 2107 . . Explosive 1328 | . 604 327 . . . 357 40 . . . . . Electromagnetic 44 | . . . . . . . 44 . . . . . Impact . | . . . . . . . . . . . . . Slashing . | . . . . . . . . . . . . . Piercing . | . . . . . . . . . . . . . Highest Corruption 19 | . . . . . . . . 19 19 19 19 . Average Corruption 18 | . . . . . . . . 12 19 19 19 . Corruption Purged . | . . . . . . . . . . . . . Effects 87 | . . . . . . . . 8 22 14 43 . Message Errors 18 | . . . . . . . . . 5 3 10 . Matter Fused 28 | . . . . . . . . 3 6 5 14 . Heat Flow Errors 7 | . . . . . . . . 1 3 . 3 . Energy Discharges 9 | . . . . . . . . 2 4 . 3 . Data Loss (minor) 11 | . . . . . . . . . 2 . 9 . Data Loss (major) 1 | . . . . . . . . 1 . . . . Misfires 5 | . . . . . . . . 1 2 1 1 . Alerts 2 | . . . . . . . . . . 1 1 . Misdirections 3 | . . . . . . . . . . 1 2 . Weapon Failures 3 | . . . . . . . . . . 3 . . Overload Shots . | . . . . . . . . . . . . . Overflow Damage 403 | . 37 . . . 26 41 29 . 77 193 . . Projectiles 331 | . . . . . 26 41 29 . 77 158 . . Explosions 72 | . 37 . . . . . . . . 35 . . Melee . | . . . . . . . . . . . . . Knockbacks 1 | . . . . . 1 . . . . . . . Impact . | . . . . . . . . . . . . . Kinetic 1 | . . . . . 1 . . . . . . . Secondary . | . . . . . . . . . . . . . Self-Inflicted Damage 626 | . 73 . . . . . 24 126 258 145 . . Shots 13 | . 4 . . . . . 1 2 4 2 . . Rammed . | . . . . . . . . . . . . . Targets Rammed . | . . . . . . . . . . . . . Kicked . | . . . . . . . . . . . . . Crushed . | . . . . . . . . . . . . . Highest Temperature 323 | . 20 12 12 . 200 256 323 98 245 10 174 . Average Temperature 79 | . 4 7 9 . 72 76 113 29 89 7 81 . Received Heat Transfer 944 | . 342 12 . . 36 108 231 . . 168 15 32 Effects 3 | . . . . . . 1 2 . . . . . Energy Bleed 1 | . . . . . . 1 . . . . . . Interference 2 | . . . . . . . 2 . . . . . Siege Activations 2 | . . . . . . . . . . 2 . . Total Turns 25 | . . . . . . . . . . 25 . . Longest Duration 17 | . . . . . . . . . . 17 . . Robots Corrupted . | . . . . . . . . . . . . . Combat Hostiles . | . . . . . . . . . . . . . Parts Fried . | . . . . . . . . . . . . . Impact Corruptions . | . . . . . . . . . . . . . Robots Melted 10 | . . . . . . 2 1 3 1 3 . . Combat Hostiles 10 | . . . . . . 2 1 3 1 3 . . Parts Melted 26 | . . . . . . 12 9 2 . 3 . . Heat Transferred 11540 | . . . . . 800 3840 3490 1200 320 1890 . . Parts Sabotaged . | . . . . . . . . . . . . . Parts Stolen . | . . . . . . . . . . . . . Parts Stripped . | . . . . . . . . . . . . . Power Chain Reactions . | . . . . . . . . . . . . . Missiles Intercepted . | . . . . . . . . . . . . . Alert | -11 -10 -9 -9 -9 -8 -8 -7 -7 -7 -7 -7 -5 ------- Run | Scr Mat Mat Min Exi Min Mat Fac Was Fac Sto Rec Fac Peak Influence 974 | . 288 195 85 . 71 325 346 150 167 665 350 974 Initial 944 | . . 50 75 . . 27 144 121 80 40 252 944 Average 178 | . 137 164 81 . 26 164 196 121 115 302 191 943 Maximum Alert Level 3 | . 1 . . . . 1 1 . . 2 1 3 Low Security (%) 71 | . 74 100 100 . 100 65 66 100 100 57 45 . Level 1 24 | . 25 . . . . 34 33 . . 7 54 . Level 2 1 | . . . . . . . . . . 35 . . Level 3 3 | . . . . . . . . . . . . 100 Level 4 . | . . . . . . . . . . . . . Level 5 . | . . . . . . . . . . . . . High Security . | . . . . . . . . . . . . . Max Security . | . . . . . . . . . . . . . Squads Dispatched 16 | . 4 1 . . . 4 2 . . 4 . 1 Investigation 4 | . 2 . . . . 1 . . . . . 1 Extermination . | . . . . . . . . . . . . . Reinforcement 11 | . 2 1 . . . 3 2 . . 3 . . Assault 1 | . . . . . . . . . . 1 . . Garrison . | . . . . . . . . . . . . . Intercept . | . . . . . . . . . . . . . Construction Impeded 1 | . . . . . . . 1 . . . . . Haulers Reinforced . | . . . . . . . . . . . . . Active Scanning Responses . | . . . . . . . . . . . . . Cargo Convoy Interrupts . | . . . . . . . . . . . . . Stealth | -11 -10 -9 -9 -9 -8 -8 -7 -7 -7 -7 -7 -5 --------- Run | Scr Mat Mat Min Exi Min Mat Fac Was Fac Sto Rec Fac Distress Signals 8 | . 3 2 . . . 2 . . . 1 . . Communications Jammed . | . . . . . . . . . . . . . Distress Signals . | . . . . . . . . . . . . . Times Spotted 123 | . 29 6 . . 5 21 16 4 2 13 23 4 Peak Tracking Total 7 | . 3 5 . . 3 4 3 3 1 7 4 4 Tactical Retreats 3 | . . . . . . 1 . . . 2 . . Traps | -11 -10 -9 -9 -9 -8 -8 -7 -7 -7 -7 -7 -5 ------- Run | Scr Mat Mat Min Exi Min Mat Fac Was Fac Sto Rec Fac Traps Triggered 7 | . 1 . . . . 1 2 . . 2 . 1 Indirectly 1 | . . . . . . . 1 . . . . . Trap Hack Attempts . | . . . . . . . . . . . . . Triggered . | . . . . . . . . . . . . . Disarmed . | . . . . . . . . . . . . . Reprogrammed . | . . . . . . . . . . . . . Reused . | . . . . . . . . . . . . . Traps Extracted . | . . . . . . . . . . . . . Installed . | . . . . . . . . . . . . . Triggered . | . . . . . . . . . . . . . Machines | -11 -10 -9 -9 -9 -8 -8 -7 -7 -7 -7 -7 -5 ---------- Run | Scr Mat Mat Min Exi Min Mat Fac Was Fac Sto Rec Fac Machines Disabled 15 | . 1 . . . . 1 4 . 5 3 1 . Max in Single Turn 4 | . 1 . . . . 1 3 . 4 1 . . Garrison Access 4 | . . . . . . 1 1 . 1 1 . . Machines Sabotaged . | . . . . . . . . . . . . . Garrisons Compromised . | . . . . . . . . . . . . . Overloaded Fab Kills . | . . . . . . . . . . . . . Fab Network Shutdowns . | . . . . . . . . . . . . . Hacking | -11 -10 -9 -9 -9 -8 -8 -7 -7 -7 -7 -7 -5 --------- Run | Scr Mat Mat Min Exi Min Mat Fac Was Fac Sto Rec Fac Machines Accessed 28 | . 4 1 . 2 . 5 3 . 3 1 9 . Terminals 18 | . 4 1 . . . 4 1 . 2 1 5 . Fabricators 1 | . . . . . . . 1 . . . . . Repair Stations . | . . . . . . . . . . . . . Recycling Units 4 | . . . . . . . . . . . 4 . Scanalyzers . | . . . . . . . . . . . . . Garrison Access 3 | . . . . . . 1 1 . 1 . . . Total Hacks 56 | . 11 1 . 2 . 11 7 . 6 1 17 . Successful 20 | . 2 . . 2 . 3 4 . 3 . 6 . Failed 36 | . 9 1 . . . 8 3 . 3 1 11 . Catastrophic 6 | . 1 . . . . . 1 . 1 1 2 . Database Lockouts . | . . . . . . . . . . . . . Manual 20 | . 2 1 . 1 . 2 4 . 2 2 6 . Terminals 41 | . 11 1 . . . 9 3 . 5 1 11 . Fabricators 2 | . . . . . . . 2 . . . . . Repair Stations . | . . . . . . . . . . . . . Recycling Units 6 | . . . . . . . . . . . 6 . Scanalyzers . | . . . . . . . . . . . . . Garrison Access 5 | . . . . . . 2 2 . 1 . . . Terminal Hacks 12 | . 2 . . 2 . 1 2 . 2 . 3 . Record 1 | . . . . 1 . . . . . . . . Prototype ID Bank 2 | . 1 . . . . . . . . . 1 . Branch Access Points 1 | . . . . . . . . . 1 . . . Alert Level 3 | . . . . . . . 1 . 1 . 1 . Unreport Threat 2 | . . . . . . . 1 . . . 1 . Hauler Manifests 1 | . . . . . . 1 . . . . . . Zone Layout 1 | . 1 . . . . . . . . . . . EX-Prototype ID Bank 1 | . . . . 1 . . . . . . . . Fabricator Hacks . | . . . . . . . . . . . . . Repair Station Hacks . | . . . . . . . . . . . . . Recycling Unit Hacks . | . . . . . . . . . . . . . Scanalyzer . | . . . . . . . . . . . . . Garrison Access Hacks 3 | . . . . . . 1 1 . 1 . . . Seal Access 3 | . . . . . . 1 1 . 1 . . . Unauthorized Hacks 5 | . . . . . . 1 1 . . . 3 . Terminals 1 | . . . . . . 1 . . . . . . Botnet 1 | . . . . . . 1 . . . . . . Fabricators 1 | . . . . . . . 1 . . . . . Haulers 1 | . . . . . . . 1 . . . . . Repair Stations . | . . . . . . . . . . . . . Recycling Units 3 | . . . . . . . . . . . 3 . Tunnel 3 | . . . . . . . . . . . 3 . Scanalyzers . | . . . . . . . . . . . . . Garrison Access . | . . . . . . . . . . . . . Data Cores Recovered 2 | . . . . . . 2 . . . . . . Used 1 | . . . . . . 1 . . . . . . Hacking Detections 20 | . 4 1 . . . 4 2 . 2 2 5 . Full Trace Events 3 | . 1 . . . . . . . . . 2 . Feedback Events . | . . . . . . . . . . . . . Feedback Blocked . | . . . . . . . . . . . . . Robot Schematics Acquired . | . . . . . . . . . . . . . Robots Built . | . . . . . . . . . . . . . Matter . | . . . . . . . . . . . . . Time . | . . . . . . . . . . . . . Total Robot Build Rating . | . . . . . . . . . . . . . Part Schematics Acquired . | . . . . . . . . . . . . . Parts Built . | . . . . . . . . . . . . . Matter . | . . . . . . . . . . . . . Time . | . . . . . . . . . . . . . Total Part Build Rating . | . . . . . . . . . . . . . Parts Repaired . | . . . . . . . . . . . . . Time . | . . . . . . . . . . . . . Parts Recycled . | . . . . . . . . . . . . . Recycled Matter . | . . . . . . . . . . . . . Retrieved Matter . | . . . . . . . . . . . . . Retrieved Components . | . . . . . . . . . . . . . Parts Scanalyzed . | . . . . . . . . . . . . . Part Schematics Acquired . | . . . . . . . . . . . . . Parts Damaged . | . . . . . . . . . . . . . Bothacking | -11 -10 -9 -9 -9 -8 -8 -7 -7 -7 -7 -7 -5 ------------ Run | Scr Mat Mat Min Exi Min Mat Fac Was Fac Sto Rec Fac Used RIF Installer . | . . . . . . . . . . . . . Robots Hacked . | . . . . . . . . . . . . . Non-combat . | . . . . . . . . . . . . . Combat . | . . . . . . . . . . . . . Robot Hacks Applied . | . . . . . . . . . . . . . Relay Couplers Released 1 | . . . . . . . . . . 1 . . Machine Destruction 1 | . . . . . . . . . . 1 . . Robots Rewired 16 | . . . . . . . 1 . . . 15 . Allies Hacked . | . . . . . . . . . . . . . Hacks Repelled . | . . . . . . . . . . . . . Allies | -11 -10 -9 -9 -9 -8 -8 -7 -7 -7 -7 -7 -5 -------- Run | Scr Mat Mat Min Exi Min Mat Fac Was Fac Sto Rec Fac Total Allies 17 | . . . . . . . 1 1 . . 15 . Largest Group 11 | . . . . . . . 1 2 . . 11 8 Highest-Rated Group 266 | . . . . . . . 32 63 . . 266 182 Highest-Rated Ally 40 | . . . . . . . 32 32 . . 40 40 Total Orders . | . . . . . . . . . . . . . Ally Attacks 143 | . . . . . . . 3 18 . . 114 8 Total Damage 1839 | . . . . . . . 70 522 . . 1184 63 Kills 31 | . . . . . . . 1 1 . . 29 . Allies Corrupted . | . . . . . . . . . . . . . Allies Melted . | . . . . . . . . . . . . . Intel | -11 -10 -9 -9 -9 -8 -8 -7 -7 -7 -7 -7 -5 ------- Run | Scr Mat Mat Min Exi Min Mat Fac Was Fac Sto Rec Fac Robot Analysis Total . | . . . . . . . . . . . . . Derelict Logs Recovered 1 | . . . 1 . . . . . . . . . Drone Launches . | . . . . . . . . . . . . . Drone Recoveries . | . . . . . . . . . . . . . Exploration | -11 -10 -9 -9 -9 -8 -8 -7 -7 -7 -7 -7 -5 ------------- Run | Scr Mat Mat Min Exi Min Mat Fac Was Fac Sto Rec Fac Turns Passed 6475 | . 1333 305 162 539 448 926 780 178 505 226 884 189 Spaces Moved 3509 | 1 607 172 104 338 241 559 485 92 299 86 388 137 Core 32 | . . . . . . . . . . . . 32 Treads 929 | . . . . . . . . 51 299 86 388 105 Legs 836 | 1 536 . . . . . 258 41 . . . . Wheels 1712 | . 71 172 104 338 241 559 227 . . . . . Hover . | . . . . . . . . . . . . . Flight . | . . . . . . . . . . . . . Fastest Speed 50 | 120 120 140 140 140 155 115 110 123 160 160 160 50 Average Speed 150 | 120 172 159 140 156 169 127 129 146 160 160 160 134 Slowest Speed 205 | 120 200 200 140 170 170 130 196 205 160 160 160 160 Overloaded Moves . | . . . . . . . . . . . . . Propulsion Burnouts . | . . . . . . . . . . . . . Robots Hopped . | . . . . . . . . . . . . . Cave-ins Triggered . | . . . . . . . . . . . . . Exploration Rate (%) 42 | 2 92 21 29 70 73 39 12 86 12 21 81 8 Regions Visited 12 Branch Regions 5 Pre-discovered Areas 4 | . . . . 1 . . . . . . 3 . Known Exits Taken 1 | . . . . . . . . . 1 . . . Unknown Exits Taken 9 | 1 1 1 1 1 1 1 . . . 1 1 . Scrap Searched 1 | . . . . . 1 . . . . . . . Spaces Dug 67 | . . . . . . 6 61 . . . . . Terrain Destroyed 514 | . 72 19 . . 1 23 100 77 70 152 . . Melee . | . . . . . . . . . . . . . Projectile 15 | . . . . . 1 7 2 2 1 2 . . AOE 499 | . 72 19 . . . 16 98 75 69 150 . . Terrain Rammed . | . . . . . . . . . . . . . Walls Destroyed . | . . . . . . . . . . . . . Machines Disabled . | . . . . . . . . . . . . . Actions | -11 -10 -9 -9 -9 -8 -8 -7 -7 -7 -7 -7 -5 --------- Run | Scr Mat Mat Min Exi Min Mat Fac Was Fac Sto Rec Fac Total 4310 | . 757 196 111 350 262 719 586 110 317 126 635 141 Wait 183 | . 18 1 3 . 5 60 9 . 15 23 46 3 Move 3498 | . 606 171 103 337 240 558 485 91 298 85 387 137 Hop . | . . . . . . . . . . . . . Pick Up 55 | . 25 3 . 4 . 12 9 . 1 . 1 . Fast Attach 17 | . 1 1 . . . 1 5 3 . 2 4 . Attach 17 | . 3 2 . 3 . 2 6 . . . 1 . Detach 1 | . 1 . . . . . . . . . . . Swap 43 | . 18 4 . 2 2 9 7 1 . . . . Drop 64 | . 13 8 . 4 . 16 15 6 . . 2 . Fire 256 | . 72 6 5 . 15 61 49 9 3 16 19 1 Melee . | . . . . . . . . . . . . . Ram . | . . . . . . . . . . . . . Kick . | . . . . . . . . . . . . . Crush . | . . . . . . . . . . . . . Escape Stasis . | . . . . . . . . . . . . . Rewire 176 | . . . . . . . 1 . . . 175 . Trap . | . . . . . . . . . . . . . Miscellaneous . | . . . . . . . . . . . . . Route ------- -11/Scrapyard -10/Materials (discovered 4 exits: *Mat x3 / [*Min]) -9/Materials -9/Mines -9/Exiles -8/Mines -8/Materials -7/Factory (discovered 2 exits: Sto / *Low) -7/Waste -7/Factory (discovered 4 exits: *Sto x2 / Low x2) -7/Storage -7/Recycling -5/Factory History --------- Turn | Location | Event 1 | -11/Scrapyard | Discovered new exit (range 0) 1 | -11/Scrapyard | Entered Materials 189 | -10/Materials | Discovered new exit (range 10) 218 | -10/Materials | Discovered new exit (range 4) 301 | -10/Materials | Build established: Mutant 487 | -10/Materials | Discovered new exit (range 10) 634 | -10/Materials | Core integrity fell below 50% 797 | -10/Materials | Discovered new exit (range 11) 1334 | -10/Materials | Entered another Materials area 1334 | -9/Materials | Evolved 2 slots: Utility x2 1547 | -9/Materials | Discovered new exit (range 6) 1599 | -9/Materials | Met 8R-AWN 1639 | -9/Materials | Entered Mines 1640 | -9/Mines | Followed 8R-AWN into the Mines 1795 | -9/Mines | Discovered new exit (range 5) 1801 | -9/Mines | Entered Exiles 1839 | -9/Exiles | Welcomed by 8R-AWN 1860 | -9/Exiles | Met EX-HEX 1912 | -9/Exiles | Met EX-DEC 1925 | -9/Exiles | Learned location of Zion (-6) 1950 | -9/Exiles | Met EX-BIN 1969 | -9/Exiles | Aligned with FarCom system 1971 | -9/Exiles | Given EX-Vault access code 2003 | -9/Exiles | Opened EX-Vault 2011 | -9/Exiles | Found YOLO Cannon 2014 | -9/Exiles | Found Gui. Plasma Cannon 2040 | -9/Exiles | Found XL Autogun Array 2078 | -9/Exiles | Warned to stay clear of 0b10 Research branches 2316 | -9/Exiles | Discovered new exit (range 12) 2340 | -9/Exiles | Stole three prototypes: Gui. Plasma Cannon, YOLO Cannon, XL Autogun Array 2340 | -9/Exiles | Entered Mines 2775 | -8/Mines | Discovered new exit (range 9) 2788 | -8/Mines | Entered Materials 2788 | -8/Materials | Evolved 2 slots: Propulsion x2 3632 | -8/Materials | Build established: Scavenger-Mutant 3693 | -8/Materials | Discovered new exit (range 16) 3714 | -8/Materials | Entered Factory 3714 | -7/Factory | Evolved 2 slots: Propulsion x2 3715 | -7/Factory | Identified exit to Storage 3716 | -7/Factory | FarCom data flow suspended 4105 | -7/Factory | Discovered new exit (range 9) 4494 | -7/Factory | Sucked down chute 4494 | -7/Factory | Entered Waste 4495 | -7/Waste | Met a frightened Derelict 4502 | -7/Waste | Spotted C-40 Crusher 4505 | -7/Waste | 1 allies followed down the chute 4509 | -7/Waste | EMP discharged 4525 | -7/Waste | Spotted C-40 Crusher 4529 | -7/Waste | Destroyed C-40 Crusher 4532 | -7/Waste | Allies destroyed C-40 Crusher 4533 | -7/Waste | Spotted C-40 Crusher 4534 | -7/Waste | Destroyed C-40 Crusher 4546 | -7/Waste | Spotted C-40 Crusher 4551 | -7/Waste | Spotted C-40 Crusher 4552 | -7/Waste | Destroyed C-40 Crusher 4552 | -7/Waste | Spotted C-40 Crusher 4564 | -7/Waste | Destroyed C-40 Crusher 4576 | -7/Waste | Destroyed C-40 Crusher 4609 | -7/Waste | EMP discharged 4609 | -7/Waste | System corruption reached 10% 4655 | -7/Waste | Discovered new exit (range 12) 4672 | -7/Waste | Entered Factory 4771 | -7/Factory | Identified exit to Lower Caves 5177 | -7/Factory | Entered Storage 5375 | -7/Storage | Core integrity fell below 50% 5397 | -7/Storage | Used back door to open Recycling access 5397 | -7/Storage | Discovered new exit (range 5) 5403 | -7/Storage | Entered Recycling 5405 | -7/Recycling | Lost 4 parts (2n1u1w) 5443 | -7/Recycling | Spotter reported a threat 5452 | -7/Recycling | Spotter reported a threat 5452 | -7/Recycling | Spotter reported a threat 5454 | -7/Recycling | Spotter reported a threat 5505 | -7/Recycling | Spotter reported a threat 5506 | -7/Recycling | Spotter reported a threat 5507 | -7/Recycling | Spotter reported a threat 5507 | -7/Recycling | Spotter reported a threat 5630 | -7/Recycling | Spotter reported a threat 5645 | -7/Recycling | Spotter reported a threat 5655 | -7/Recycling | Spotter reported a threat 5655 | -7/Recycling | Spotter reported a threat 5658 | -7/Recycling | Spotter reported a threat 5663 | -7/Recycling | Spotter reported a threat 5672 | -7/Recycling | Spotter reported a threat 5719 | -7/Recycling | Spotter reported a threat 5725 | -7/Recycling | Spotter reported a threat 5727 | -7/Recycling | Spotter reported a threat 5769 | -7/Recycling | Spotter reported a threat 5772 | -7/Recycling | Spotter reported a threat 5780 | -7/Recycling | Spotter reported a threat 5805 | -7/Recycling | Spotter reported a threat 5845 | -7/Recycling | Spotter reported a threat 5848 | -7/Recycling | Spotter reported a threat 5869 | -7/Recycling | Build established: Commander-Mutant 5896 | -7/Recycling | Spotter reported a threat 5896 | -7/Recycling | Spotter reported a threat 5896 | -7/Recycling | Spotter reported a threat 5897 | -7/Recycling | Spotter reported a threat 5955 | -7/Recycling | Spotter reported a threat 5956 | -7/Recycling | Spotter reported a threat 5984 | -7/Recycling | Spotter reported a threat 5984 | -7/Recycling | Spotter reported a threat 6008 | -7/Recycling | Spotter reported a threat 6009 | -7/Recycling | Spotter reported a threat 6037 | -7/Recycling | Spotter reported a threat 6046 | -7/Recycling | Spotter reported a threat 6062 | -7/Recycling | Spotter reported a threat 6090 | -7/Recycling | Spotter reported a threat 6112 | -7/Recycling | Spotter reported a threat 6129 | -7/Recycling | Spotter reported a threat 6129 | -7/Recycling | Spotter reported a threat 6129 | -7/Recycling | Spotter reported a threat 6175 | -7/Recycling | Spotter reported a threat 6182 | -7/Recycling | Spotter reported a threat 6182 | -7/Recycling | Spotter reported a threat 6210 | -7/Recycling | Discovered new exit (range 20) 6223 | -7/Recycling | Spotter reported a threat 6223 | -7/Recycling | Spotter reported a threat 6223 | -7/Recycling | Spotter reported a threat 6223 | -7/Recycling | Spotter reported a threat 6274 | -7/Recycling | Spotter reported a threat 6276 | -7/Recycling | Spotter reported a threat 6276 | -7/Recycling | Spotter reported a threat 6276 | -7/Recycling | Spotter reported a threat 6287 | -7/Recycling | Entered Factory 6287 | -5/Factory | Accompanied by 8 allies 6287 | -5/Factory | Evolved 4 slots: Utility x3, Weapon x1 6460 | -5/Factory | Released all parts (7) 6476 | -5/Factory | Self-destructed Last Messages --------------- Gladiator 4b suffers critical hit (Destroy). Gladiator 4b destroyed. Slug penetrates Transporter 4d. U-05 Engineer lays Concrete. U-05 Engineer builds a Door. ALERT: Security rotation in progress. Slug penetrates Angel 4b. Angel 4b suffers critical hit (Destroy). Angel 4b destroyed. Penetrated by Slug. Antimatter Reactor destroyed. U-05 Engineer destroyed. Penetrated by Slug. Released Carbon-fiber Leg. Released Hcp. Storage Unit. Released Cooling System. Released Hvy. Treads. Released Imp. Titanium Leg. Released Adv. Visual Processing Unit. Released Autogun. Map ----- +----------------------------------------------------+ | | | | | | | | | ?????????????????????????????? | | ?????????????????????????????? | | ?????????????????????????????? | | ?????????????????????????????? | | ?????????????????????????????? | | ?????????????????????????????? | | ?????????????????????????????? | | ?????????????????????????????? | | ?????????????????????????????? | | ?????????????????????????????? | | ?????????????????????????????? | | ?????????????????????????????? | | ?????????????????????????????? | | ?????????????????????????????? | | ?????????????????????????????? | | ?????????????????????????????? | | ??????????????????????#######? | | ??????????????????????# #? | | ??????????????????????#] ! #? | | ??????????????????????# #? | | ??????????????????????# ! ! #? | | ??????????????????????# @ #? | | ???????????????#+#????#! ] #? | | ????????????? ????# #? | | ???????????H ????###+###? | | ??????????? #????# #?? | | ??????????? #????# #?? | | ???????????? #????# #?? | | ???????????? #????## ##?? | | ????????????? #?????# #??? | | ?????????????? #?????# #??? | | ?????????????? #?????# #??? | | #########?????? #?????# #??? | | # #??????# #?????# #??? | | # #??????# #?????# #??? | | # #??????# #?????# #??? | | # ######## ####### #??? | | # + #??? | | # ## ##########??? | | # ## #???????????? | | # ! ## #???????????? | | # ## #???????????? | | # ??# #???????????? | | # ????#!! #???????????? | | ##+#######!! #???????????? | | *=*=!![ #???????????? | +----------------------------------------------------+ Best States ------------- Heat Dissipation 62 Energy Generation 21 Energy Capacity 575 Matter Stores 300 Matter Capacity 300 Sight Range 20 Terrain Scan Density 10 Armor Coverage 300 Utility Shielding 33 Evasion (%) 55 Targeting Accuracy 18 Recoil Reduction 4 Item Schematics ----------------- None Robot Schematics ------------------ None Fabricated ------------ Nothing Alien Tech Used ----------------- None Achievements -------------- None Challenges ------------ None Game ------ Seed DeliveryDerelictWheel Manual? 0 Play Time 00:41:53 Cumulative 337.7 hours Start 2021.09.23 @ 23:41:09 End 2021.09.24 @ 00:23:56 Sessions 1 Manual Loads 0 Difficulty Rogue Special Mode None Game No. 364 Rogue 364 Adventurer 0 Explorer 0 Win Type - Total 6 Types 6/0/0/0/0/0/0/0/0 Lore% 78 Gallery% 90 Achievement% 68 Wizard Run 0 Options --------- ASCII 0 Keyboard 0 Movement Mouse Keybinds 1 Fullscreen 2 Font 24/Smallcaps Map View 76x50 Tactical HUD 1 Map Filters NONE Filters NONE Steam 1 RUN: 32478dd9-e3e7-4272-ac72-cd957653348b